bitfinex/quotes_BTCUSD_20250727
["timestamp","ask_amount","ask_price","bid_price","bid_amount"]
[1753612963357,0.09964,118350.0,118340.0,1.57904156]
[1753612964242,0.09964,118350.0,118340.0,1.86756056]
[1753612964889,0.09964,118350.0,118340.0,1.75173056]
[1753612965092,0.09968,118350.0,118340.0,1.75173056]
[1753612965349,0.09968,118350.0,118340.0,1.17850656]
[1753612965803,0.09968,118350.0,118340.0,1.07220756]
[1753612966265,0.10812887,118350.0,118340.0,1.07220756]
[1753612966847,0.09968,118350.0,118340.0,1.07220756]
[1753612967447,0.10812894,118350.0,118340.0,1.07220756]
[1753612967953,0.10812894,118350.0,118340.0,1.06375769]
[1753612968195,0.09968,118350.0,118340.0,1.06375769]
[1753612968699,0.10812887,118350.0,118340.0,1.06375769]
[1753612969069,0.09968,118350.0,118340.0,1.06375769]
[1753612969517,0.10812894,118350.0,118340.0,1.06375769]
[1753612969766,0.09968,118350.0,118340.0,1.06375769]
[1753612972355,0.10812887,118350.0,118340.0,1.06375769]
[1753612973480,0.09968,118350.0,118340.0,1.06375769]
[1753612976493,0.09968,118350.0,118340.0,0.92059769]
[1753612976698,0.09968,118350.0,118340.0,1.06447769]
[1753612979891,0.09938,118350.0,118340.0,1.06447769]
[1753612980287,0.09938,118350.0,118340.0,0.84629069]
[1753612980436,0.09938,118350.0,118340.0,3.28373769]
[1753612980641,0.09938,118350.0,118340.0,3.25515069]
[1753612982046,0.09938,118350.0,118340.0,1.70130169]
[1753612982487,0.10782887,118350.0,118340.0,1.13460469]
[1753612982720,0.10136,118350.0,118340.0,1.02487569]
[1753612982946,0.10136,118350.0,118340.0,1.04834569]
[1753612983169,0.10136,118350.0,118340.0,1.05149569]
[1753612983457,0.10136,118350.0,118340.0,1.06649569]
[1753612983719,0.11825816,118350.0,118340.0,0.79918104]
[1753612983952,0.11825816,118350.0,118340.0,0.91782685]
[1753612984199,0.11825816,118350.0,118340.0,0.92627664]
[1753612984443,0.12670745,118350.0,118340.0,0.79850104]
[1753612984686,0.11825816,118350.0,118340.0,0.80695098]
[1753612984899,0.10980901,118350.0,118340.0,0.93746777]
[1753612985121,0.10980901,118350.0,118340.0,0.81855077]
[1753612985359,0.11825816,118350.0,118340.0,0.81010098]
[1753612985587,0.11825816,118350.0,118340.0,0.81855085]
[1753612986055,0.11825823,118350.0,118340.0,0.91082398]
[1753612986291,0.16675711,118350.0,118340.0,0.77503125]
[1753612986528,0.1583076,118350.0,118340.0,0.76658103]
[1753612986749,0.15135704,118350.0,118340.0,0.79005103]
[1753612986990,0.31884887,118350.0,118340.0,0.61493088]
[1753612987219,0.32901838,118350.0,118340.0,0.75805088]
[1753612987447,0.32901838,118350.0,118340.0,0.7665011]
[1753612987666,0.32729838,118350.0,118340.0,0.7665011]
[1753612987858,0.32056916,118350.0,118340.0,0.41789088]
[1753612988091,0.32056916,118350.0,118340.0,0.0884773]
[1753612988337,0.32056916,118350.0,118340.0,0.2313573]
[1753612989057,0.32056916,118350.0,118340.0,0.2273573]
[1753612989513,0.32156916,118350.0,118340.0,0.2273573]
[1753613003049,0.31786916,118350.0,118340.0,0.2559673]
[1753613003499,0.28626916,118350.0,118340.0,0.2559673]
[1753613008611,0.28824916,118350.0,118340.0,0.2559673]
[1753613009951,0.28824916,118350.0,118340.0,0.2508273]
[1753613010182,0.31844916,118350.0,118340.0,0.2300373]
[1753613010628,0.31844916,118350.0,118340.0,0.2533373]
[1753613011784,0.31844916,118350.0,118340.0,0.0844773]
[1753613011995,0.4794382,118350.0,118340.0,0.0844773]
[1753613012232,0.20866963,118330.0,118320.0,0.00842986]
[1753613012448,0.35679963,118330.0,118320.0,0.00842986]
[1753613012662,0.20868464,118320.0,118310.0,0.14612]
[1753613012890,0.21065464,118320.0,118310.0,0.23964088]
[1753613013114,0.21065464,118320.0,118310.0,0.09352088]
[1753613013343,0.21065464,118320.0,118310.0,0.11682088]
[1753613014025,0.21065464,118320.0,118310.0,0.1424872]
[1753613014513,0.21065464,118320.0,118310.0,0.13392893]
[1753613015179,0.21165464,118320.0,118310.0,0.13392893]
[1753613022378,0.21165464,118320.0,118310.0,0.10826261]
[1753613023356,0.21165464,118320.0,118310.0,0.11135261]
[1753613023560,0.21165464,118320.0,118310.0,0.10826261]
[1753613024422,0.18045464,118320.0,118310.0,0.11135261]
[1753613024638,0.18045464,118320.0,118310.0,0.11344261]
[1753613027670,0.19645464,118320.0,118310.0,0.11135261]
[1753613027902,0.21255464,118320.0,118310.0,0.10826261]
[1753613028831,0.21255464,118320.0,118310.0,0.13388173]
[1753613031698,0.18045464,118320.0,118310.0,0.13388173]
[1753613032099,0.18045464,118320.0,118310.0,0.13906173]
[1753613033354,0.17848464,118320.0,118310.0,0.13906173]
[1753613035640,0.32232464,118320.0,118310.0,0.13906173]
[1753613036267,0.32220464,118320.0,118310.0,0.13906173]
[1753613038156,0.17848464,118320.0,118310.0,0.13906173]
[1753613038376,0.32220464,118320.0,118310.0,0.13906173]
[1753613040239,0.32418464,118320.0,118310.0,0.13906173]
[1753613041102,0.32418464,118320.0,118310.0,0.13697173]
[1753613043079,0.32418464,118320.0,118310.0,0.13388173]
[1753613044152,0.32418464,118320.0,118310.0,0.13686173]
[1753613044383,0.32418464,118320.0,118310.0,0.13893173]
[1753613049336,0.32418464,118320.0,118310.0,0.13360887]
[1753613050519,0.32418464,118320.0,118310.0,0.13658887]
[1753613050964,0.32418464,118320.0,118310.0,0.13865887]
[1753613052608,0.32220464,118320.0,118310.0,0.15415887]
[1753613054438,0.17848464,118320.0,118310.0,0.15415887]
[1753613054670,0.32084464,118320.0,118310.0,0.15415887]
[1753613056712,0.32084464,118320.0,118310.0,0.17015887]
[1753613057203,0.32064464,118320.0,118310.0,0.17015887]
[1753613058661,0.32064464,118320.0,118310.0,0.15415887]
[1753613059518,0.17848464,118320.0,118310.0,0.15415887]
[1753613059727,0.32032464,118320.0,118310.0,0.15415887]
[1753613061045,0.32010067,118320.0,118310.0,0.15415887]
[1753613063830,0.17826067,118320.0,118310.0,0.15415887]
[1753613064049,0.31962067,118320.0,118310.0,0.15415887]
[1753613064722,0.31962067,118320.0,118310.0,0.16975887]
[1753613070239,0.17826067,118320.0,118310.0,0.16975887]
[1753613070493,0.31890067,118320.0,118310.0,0.16975887]
[1753613071822,0.001,118320.0,118310.0,0.4064567]
[1753613072027,0.00945108,118320.0,118310.0,0.42336107]
[1753613072230,0.00945108,118320.0,118310.0,0.77181301]
[1753613072443,0.0179023,118320.0,118310.0,0.76336107]
[1753613072633,0.02635359,118320.0,118310.0,0.76336114]
[1753613072836,0.0179023,118320.0,118310.0,0.78026523]
[1753613073034,0.02635367,118320.0,118310.0,0.77181322]
[1753613073241,0.0179023,118320.0,118310.0,0.78026523]
[1753613073449,0.02635367,118320.0,118310.0,0.69571072]
[1753613073694,0.0179023,118320.0,118310.0,0.69571072]
[1753613073919,0.02635367,118320.0,118310.0,0.69571072]
[1753613074139,0.0179023,118320.0,118310.0,0.69571072]
[1753613074368,0.0348051,118320.0,118310.0,0.68725857]
[1753613074591,0.0348051,118320.0,118310.0,0.68725865]
[1753613074592,0.04325668,118320.0,118310.0,0.68725865]
[1753613074814,0.04325668,118320.0,118310.0,0.69571094]
[1753613075063,0.0348051,118320.0,118310.0,0.69571094]
[1753613075254,0.0348051,118320.0,118310.0,0.70416316]
[1753613075503,0.0348051,118320.0,118310.0,0.69571094]
[1753613075917,0.0348051,118320.0,118310.0,0.70416316]
[1753613077165,0.03480503,118320.0,118310.0,0.70416316]
[1753613077801,0.04325661,118320.0,118310.0,0.69571094]
[1753613078227,0.04325661,118320.0,118310.0,0.70416316]
[1753613078458,0.03480503,118320.0,118310.0,0.70416316]
[1753613078727,0.03480503,118320.0,118310.0,0.69571094]
[1753613079194,0.04325661,118320.0,118310.0,0.69571094]
[1753613079453,0.04325661,118320.0,118310.0,0.68725865]
[1753613079900,0.04325661,118320.0,118310.0,0.67880628]
[1753613080123,0.04325718,118320.0,118310.0,0.67880628]
[1753613080344,0.04325718,118320.0,118310.0,0.68725865]
[1753613080564,0.04325718,118320.0,118310.0,0.69571094]
[1753613080773,0.04325718,118320.0,118310.0,0.68725865]
[1753613083459,0.04325718,118320.0,118310.0,0.82172628]
[1753613083653,0.20383909,118320.0,118310.0,0.82172628]
[1753613085790,0.03480596,118320.0,118310.0,0.82172628]
[1753613085910,0.03480596,118320.0,118310.0,0.83017865]
[1753613086843,0.03480596,118320.0,118310.0,0.82172628]
[1753613087362,0.03480596,118320.0,118310.0,0.79610716]
[1753613087569,0.03480596,118320.0,118310.0,0.80455953]
[1753613088153,0.03480596,118320.0,118310.0,0.79610716]
[1753613088720,0.20383909,118320.0,118310.0,0.79610716]
[1753613088953,0.20383909,118320.0,118310.0,0.80455953]
[1753613089351,0.20383909,118320.0,118310.0,0.79610716]
[1753613089617,0.20383909,118320.0,118310.0,0.80455953]
[1753613090848,0.20383909,118320.0,118310.0,0.79610716]
[1753613091076,0.03480596,118320.0,118310.0,0.79610716]
[1753613091296,0.02635431,118320.0,118310.0,0.79610716]
[1753613091494,0.02635431,118320.0,118310.0,0.81301182]
[1753613092377,0.02635431,118320.0,118310.0,0.83837133]
[1753613092906,0.02635431,118320.0,118310.0,0.82991904]
[1753613093692,0.03480596,118320.0,118310.0,0.82991904]
[1753613093926,0.20383909,118320.0,118310.0,0.82146667]
[1753613094246,0.20383909,118320.0,118310.0,0.82991904]
[1753613094987,0.20383909,118320.0,118310.0,0.82146667]
[1753613095229,0.20383909,118320.0,118310.0,0.82974104]
[1753613096660,0.18891636,118320.0,118310.0,0.28302363]
[1753613096874,0.22021636,118320.0,118310.0,0.25972363]
[1753613097109,0.20663636,118320.0,118310.0,0.25972363]
[1753613097567,0.20491636,118320.0,118310.0,0.25972363]
[1753613098056,0.20391636,118320.0,118310.0,0.25972363]
[1753613098296,0.20391636,118320.0,118310.0,0.11832363]
[1753613098539,0.18791636,118320.0,118310.0,0.28415363]
[1753613100951,0.58791636,118320.0,118310.0,0.28415363]
[1753613106301,0.62083636,118320.0,118310.0,0.11832363]
[1753613107856,0.62083636,118320.0,118310.0,0.11004926]
[1753613109231,0.70531366,118320.0,118310.0,0.00048531]
[1753613111435,0.62083636,118320.0,118310.0,0.00048531]
[1753613115754,0.61911636,118320.0,118310.0,0.00048531]
[1753613120341,0.61911636,118320.0,118310.0,0.02507531]
[1753613125615,0.60291636,118320.0,118310.0,0.02507531]
[1753613129477,0.58791636,118320.0,118310.0,0.02507531]
[1753613132561,0.67239366,118320.0,118310.0,0.02507531]
[1753613133050,0.58791636,118320.0,118310.0,0.02507531]
[1753613138595,0.72651636,118320.0,118310.0,0.02507531]
[1753613139521,0.72651636,118320.0,118310.0,0.00048531]
[1753613139741,0.75992636,118320.0,118310.0,0.00048531]
[1753613139987,0.75976636,118320.0,118310.0,0.00048531]
[1753613140466,0.84424366,118320.0,118310.0,0.00048531]
[1753613140700,0.44424366,118320.0,118310.0,0.00048531]
[1753613144741,0.35976636,118320.0,118310.0,0.00048531]
[1753613145210,0.35805636,118320.0,118310.0,0.00048531]
[1753613145645,0.35805636,118320.0,118310.0,0.02450531]
[1753613146209,0.32635636,118320.0,118310.0,0.02450531]
[1753613164449,0.32635636,118320.0,118310.0,0.02750531]
[1753613171827,0.32635636,118320.0,118310.0,0.04250531]
[1753613175409,0.32635636,118320.0,118310.0,0.04465531]
[1753613180006,0.35174636,118320.0,118310.0,0.04465531]
[1753613180210,0.37737096,118320.0,118310.0,0.04465531]
[1753613180425,0.35174636,118320.0,118310.0,0.04465531]
[1753613188389,0.35174636,118320.0,118310.0,0.06065531]
[1753613190562,0.35174636,118320.0,118310.0,0.04465531]
[1753613198295,0.35174636,118320.0,118310.0,0.04250531]
[1753613200969,0.35174636,118320.0,118310.0,0.05890531]
[1753613201618,0.4056449,118320.0,118310.0,0.05890531]
[1753613203800,0.35174636,118320.0,118310.0,0.05890531]
[1753613204251,0.35174636,118320.0,118310.0,0.06106531]
[1753613205632,0.35174636,118320.0,118310.0,0.04466531]
[1753613205854,0.35174636,118320.0,118310.0,0.04250531]
[1753613206251,0.21330636,118320.0,118310.0,0.04250531]
[1753613206465,0.35010636,118320.0,118310.0,0.06056531]
[1753613207319,0.37725827,118320.0,118310.0,0.06056531]
[1753613215123,0.35010636,118320.0,118310.0,0.06056531]
[1753613226081,0.35838916,118320.0,118310.0,0.06056531]
[1753613235411,0.35010636,118320.0,118310.0,0.06056531]
[1753613258406,0.35014636,118320.0,118310.0,0.06056531]
[1753613281071,0.32475636,118320.0,118310.0,0.06056531]
[1753613282884,0.3430402,118320.0,118310.0,0.06056531]
[1753613289781,0.3421602,118320.0,118310.0,0.06056531]
[1753613299428,0.32387636,118320.0,118310.0,0.06056531]
[1753613307096,0.18597636,118320.0,118310.0,0.06056531]
[1753613308466,0.18597636,118320.0,118310.0,0.14504261]
[1753613308676,0.17752478,118320.0,118310.0,0.14504261]
[1753613308889,0.57752478,118320.0,118310.0,0.31409002]
[1753613309100,0.17752478,118320.0,118310.0,0.31409002]
[1753613309337,0.17752478,118320.0,118310.0,0.14504261]
[1753613309936,0.16907313,118320.0,118310.0,0.14504261]
[1753613310837,0.16907313,118320.0,118310.0,0.31409002]
[1753613312742,0.16907313,118320.0,118310.0,0.14504261]
[1753613313713,0.16907313,118320.0,118310.0,0.31409002]
[1753613314345,0.17752471,118320.0,118310.0,0.31409002]
[1753613314610,0.18597608,118320.0,118310.0,0.31409002]
[1753613315034,0.19442773,118320.0,118310.0,0.31409002]
[1753613316541,0.01694252,118320.0,118310.0,0.32254231]
[1753613316775,0.01694252,118320.0,118310.0,0.33099446]
[1753613317853,0.02539403,118320.0,118310.0,0.33099453]
[1753613318288,0.01694252,118320.0,118310.0,0.32254231]
[1753613318744,0.0253941,118320.0,118310.0,0.32254231]
[1753613318956,0.01694252,118320.0,118310.0,0.33944668]
[1753613319170,0.01694244,118320.0,118310.0,0.68789869]
[1753613319386,0.00849115,118320.0,118310.0,0.69635063]
[1753613319622,0.01694237,118320.0,118310.0,0.67944668]
[1753613319855,0.01694237,118320.0,118310.0,0.69635077]
[1753613320067,0.02539374,118320.0,118310.0,0.68789876]
[1753613320283,0.03384532,118320.0,118310.0,0.66254231]
[1753613320497,0.03384525,118320.0,118310.0,0.66254224]
[1753613320709,0.03384525,118320.0,118310.0,0.65409002]
[1753613320959,0.03384518,118320.0,118310.0,0.66254239]
[1753613321170,0.04229676,118320.0,118310.0,0.67099468]
[1753613321411,0.04229676,118320.0,118310.0,0.66254239]
[1753613322532,0.04229676,118320.0,118310.0,0.67099468]
[1753613322974,0.02539381,118320.0,118310.0,0.67099468]
[1753613323207,0.02539381,118320.0,118310.0,0.68789905]
[1753613323697,0.02539366,118320.0,118310.0,0.68789876]
[1753613324570,0.02539366,118320.0,118310.0,0.69635077]
[1753613324789,0.0338451,118320.0,118310.0,0.68789876]
[1753613325005,0.0338451,118320.0,118310.0,0.67944668]
[1753613325221,0.02539366,118320.0,118310.0,0.68789876]
[1753613325442,0.03384503,118320.0,118310.0,0.68789876]
[1753613325902,0.03384503,118320.0,118310.0,0.69635077]
[1753613326125,0.03384503,118320.0,118310.0,0.67944668]
[1753613326337,0.04229654,118320.0,118310.0,0.67099453]
[1753613326561,0.03384503,118320.0,118310.0,0.67099453]
[1753613326796,4e-05,118320.0,118310.0,0.69635063]
[1753613327540,4e-05,118320.0,118310.0,1.32910363]
[1753613329882,4e-05,118320.0,118310.0,1.16962363]
[1753613335454,4e-05,118320.0,118310.0,1.16117176]
[1753613335723,0.00849101,118320.0,118310.0,0.67944668]
[1753613335950,0.00849101,118320.0,118310.0,0.81712668]
[1753613336400,4e-05,118320.0,118310.0,0.83603063]
[1753613336850,4e-05,118320.0,118310.0,0.83603021]
[1753613337411,4e-05,118320.0,118310.0,0.82757834]
[1753613338256,4e-05,118320.0,118310.0,0.83603021]
[1753613341535,4e-05,118320.0,118310.0,2.46657721]
[1753613341958,4e-05,118320.0,118310.0,1.97776421]
[1753613342798,4e-05,118320.0,118310.0,1.29499221]
[1753613343307,4e-05,118320.0,118310.0,1.26298021]
[1753613343525,4e-05,118320.0,118310.0,1.06673321]
[1753613347881,4e-05,118320.0,118310.0,0.72673321]
[1753613349234,4e-05,118320.0,118310.0,0.60555921]
[1753613351501,4e-05,118320.0,118310.0,1.16916321]
[1753613368158,4e-05,118320.0,118310.0,0.49603021]
[1753613368410,4e-05,118320.0,118310.0,2.10252421]
[1753613369839,4e-05,118320.0,118310.0,1.62205521]
[1753613370527,4e-05,118320.0,118310.0,1.58523221]
[1753613370754,4e-05,118320.0,118310.0,1.53135921]
[1753613374202,4e-05,118320.0,118310.0,5.0980845]
[1753613374722,4e-05,118320.0,118310.0,5.1234615]
[1753613374959,4e-05,118320.0,118310.0,5.1224615]
[1753613375191,4e-05,118320.0,118310.0,5.8897635]
[1753613375434,4e-05,118320.0,118310.0,5.8887635]
[1753613375652,0.00304,118320.0,118310.0,5.8887635]
[1753613376339,0.11682902,118350.0,118340.0,0.56635437]
[1753613376567,0.11682902,118350.0,118340.0,0.70952437]
[1753613376983,0.11682902,118350.0,118340.0,0.73571437]
[1753613377262,0.11682902,118350.0,118340.0,0.82019167]
[1753613377730,0.12527796,118350.0,118340.0,0.82019167]
[1753613378137,0.13570704,118350.0,118340.0,0.82019174]
[1753613378398,0.12725796,118350.0,118340.0,0.80429201]
[1753613378619,0.14415619,118350.0,118340.0,0.75246202]
[1753613378844,0.14415619,118350.0,118340.0,0.78394196]
[1753613379061,0.14415619,118350.0,118340.0,0.79069202]
[1753613379279,0.14415619,118350.0,118340.0,0.79069209]
[1753613379767,0.14415619,118350.0,118340.0,0.7991421]
[1753613379991,0.14415619,118350.0,118340.0,0.79069209]
[1753613380208,0.14415619,118350.0,118340.0,0.79914203]
[1753613380428,0.13570697,118350.0,118340.0,0.8075919]
[1753613380668,0.14415605,118350.0,118340.0,0.8075919]
[1753613380964,0.13570697,118350.0,118340.0,0.81920169]
[1753613381196,0.14415612,118350.0,118340.0,0.8107519]
[1753613381433,0.11880902,118350.0,118340.0,0.83779162]
[1753613381667,0.12725796,118350.0,118340.0,0.83779169]
[1753613381914,0.12725796,118350.0,118340.0,0.8293419]
[1753613382134,0.13570704,118350.0,118340.0,0.8293419]
[1753613382381,0.12725796,118350.0,118340.0,0.83779126]
[1753613383063,0.13570697,118350.0,118340.0,0.82934154]
[1753613383292,0.14415619,118350.0,118340.0,0.82089175]
[1753613383598,0.13570697,118350.0,118340.0,0.82934147]
[1753613383816,0.14415605,118350.0,118340.0,0.82089175]
[1753613384044,0.13570697,118350.0,118340.0,0.83779126]
[1753613384271,0.13372697,118350.0,118340.0,0.82089175]
[1753613384514,0.13372697,118350.0,118340.0,0.81244188]
[1753613384749,0.14217619,118350.0,118340.0,0.81244188]
[1753613384968,0.13372697,118350.0,118340.0,0.81244188]
[1753613385221,0.13372697,118350.0,118340.0,0.82089167]
[1753613385462,0.14217612,118350.0,118340.0,0.81244188]
[1753613385939,0.13372697,118350.0,118340.0,0.82934154]
[1753613386161,0.14217612,118350.0,118340.0,0.82934154]
[1753613386411,0.14217612,118350.0,118340.0,0.81244188]
[1753613386636,0.15062534,118350.0,118340.0,0.81244188]
[1753613387415,0.13372697,118350.0,118340.0,0.81244188]
[1753613387628,0.13372697,118350.0,118340.0,0.82934154]
[1753613387853,0.13372697,118350.0,118340.0,0.82089175]
[1753613388084,0.12527796,118350.0,118340.0,0.83779126]
[1753613388553,0.12527796,118350.0,118340.0,0.82934154]
[1753613388766,0.13372704,118350.0,118340.0,0.82934154]
[1753613389088,0.12527796,118350.0,118340.0,0.83779126]
[1753613389318,0.13372697,118350.0,118340.0,0.81244188]
[1753613389546,0.14217612,118350.0,118340.0,0.82089175]
[1753613389963,0.13372697,118350.0,118340.0,0.82089175]
[1753613390179,0.13372697,118350.0,118340.0,0.82934154]
[1753613390380,0.13372697,118350.0,118340.0,0.83779126]
[1753613390593,0.13372697,118350.0,118340.0,0.82934154]
[1753613391005,0.14217612,118350.0,118340.0,0.82934154]
[1753613391301,0.13372697,118350.0,118340.0,0.83779126]
[1753613391704,0.13372697,118350.0,118340.0,0.82089175]
[1753613391918,0.14217612,118350.0,118340.0,0.82089175]
[1753613392541,0.14217612,118350.0,118340.0,0.82934154]
[1753613392731,0.14217612,118350.0,118340.0,0.81244188]
[1753613392930,0.14217612,118350.0,118340.0,0.80399194]
[1753613393186,0.14217612,118350.0,118340.0,0.81244188]
[1753613393651,0.15062541,118350.0,118340.0,0.81244195]
[1753613393882,0.14217647,118350.0,118340.0,0.81244209]
[1753613394316,0.13372718,118350.0,118340.0,0.81244209]
[1753613394537,0.14217647,118350.0,118340.0,0.82089217]
[1753613394763,0.14217647,118350.0,118340.0,0.82934211]
[1753613394981,0.14217647,118350.0,118340.0,0.82089217]
[1753613395222,0.13372718,118350.0,118340.0,0.82934211]
[1753613395440,0.09938,118350.0,118340.0,1.65916183]
[1753613395665,0.09938,118350.0,118340.0,1.68453183]
[1753613396773,0.09938,118350.0,118340.0,1.68353183]
[1753613397613,0.09938,118350.0,118340.0,1.68553183]
[1753613398506,0.09938,118350.0,118340.0,1.68853183]
[1753613400712,0.11627809,118350.0,118340.0,1.39966086]
[1753613400938,0.09938,118350.0,118340.0,1.35895067]
[1753613401164,0.11627816,118350.0,118340.0,1.35895082]
[1753613401383,0.10782901,118350.0,118340.0,1.36740054]
[1753613401597,0.09938,118350.0,118340.0,1.36740054]
[1753613402021,0.09938,118350.0,118340.0,1.36716054]
[1753613403564,0.09938,118350.0,118340.0,2.21055254]
[1753613404271,0.09938,118350.0,118340.0,2.02226554]
[1753613404501,0.1267076,118350.0,118340.0,0.94770186]
[1753613404722,0.1267076,118350.0,118340.0,0.91202208]
[1753613404953,0.30414732,118350.0,118340.0,0.88837186]
[1753613405651,0.13515704,118350.0,118340.0,0.88628186]
[1753613405925,0.13515704,118350.0,118340.0,0.89429208]
[1753613406145,0.13515704,118350.0,118340.0,0.90274223]
[1753613406384,0.13515704,118350.0,118340.0,0.90479223]
[1753613406608,0.13515704,118350.0,118340.0,0.91419508]
[1753613406858,0.1267076,118350.0,118340.0,0.93109531]
[1753613407073,0.11825823,118350.0,118340.0,0.92926031]
[1753613407290,0.1267076,118350.0,118340.0,0.81837231]
[1753613407511,0.1267076,118350.0,118340.0,0.94239831]
[1753613407733,0.1267076,118350.0,118340.0,0.93063631]
[1753613407955,0.1247276,118350.0,118340.0,0.93062631]
[1753613408184,0.1247276,118350.0,118340.0,0.94632631]
[1753613409300,0.11627823,118350.0,118340.0,0.95477632]
[1753613409518,0.12472752,118350.0,118340.0,0.94632631]
[1753613410200,0.11627823,118350.0,118340.0,0.95477632]
[1753613410422,0.12472752,118350.0,118340.0,0.95477632]
[1753613410644,0.12472752,118350.0,118340.0,0.94632631]
[1753613410909,0.13317689,118350.0,118340.0,0.95477632]
[1753613411126,0.12472752,118350.0,118340.0,0.95477632]
[1753613411344,0.11627823,118350.0,118340.0,0.96322591]
[1753613411570,0.09938,118350.0,118340.0,0.95477604]
[1753613411799,0.10782894,118350.0,118340.0,0.96322576]
[1753613412030,0.10782887,118350.0,118340.0,0.96322576]
[1753613412736,0.11627795,118350.0,118340.0,0.96322576]
[1753613412962,0.12472689,118350.0,118340.0,0.96322583]
[1753613413638,0.11627781,118350.0,118340.0,0.9632254]
[1753613414108,0.12472689,118350.0,118340.0,0.95477568]
[1753613414334,0.12472689,118350.0,118340.0,0.9641454]
[1753613414561,0.12472682,118350.0,118340.0,0.9641454]
[1753613415427,0.11627781,118350.0,118340.0,0.9641454]
[1753613415850,0.12472682,118350.0,118340.0,0.9641454]
[1753613416070,0.12472682,118350.0,118340.0,0.95569568]
[1753613416272,0.12472682,118350.0,118340.0,0.9641454]
[1753613416709,0.13317597,118350.0,118340.0,0.95569576]
[1753613416912,0.10782887,118350.0,118340.0,0.96414555]
[1753613417164,0.11627788,118350.0,118340.0,0.96414519]
[1753613417385,0.10782887,118350.0,118340.0,0.96414519]
[1753613417607,0.09938,118350.0,118340.0,0.96414519]
[1753613417823,0.10782887,118350.0,118340.0,0.96414519]
[1753613418317,0.11627788,118350.0,118340.0,0.96414519]
[1753613418552,0.10782887,118350.0,118340.0,0.98894991]
[1753613419710,0.11627788,118350.0,118340.0,0.98894991]
[1753613419900,0.11627795,118350.0,118340.0,0.98894991]
[1753613420109,0.11627788,118350.0,118340.0,0.98894991]
[1753613420519,0.10782887,118350.0,118340.0,0.98894991]
[1753613420938,0.09938,118350.0,118340.0,0.98894991]
[1753613421353,0.10782887,118350.0,118340.0,0.98894991]
[1753613421572,0.09938,118350.0,118340.0,0.98894991]
[1753613421806,0.09938,118350.0,118340.0,0.87669591]
[1753613422019,0.09938,118350.0,118340.0,2.19909491]
[1753613422399,0.09938,118350.0,118340.0,2.88909091]
[1753613422620,0.09938,118350.0,118340.0,2.24409091]
[1753613423267,0.10782887,118350.0,118340.0,2.24409091]
[1753613423488,0.10782887,118350.0,118340.0,2.23314091]
[1753613423726,0.12472696,118350.0,118340.0,1.97973919]
[1753613424122,0.12472689,118350.0,118340.0,1.98818891]
[1753613424345,0.1331759,118350.0,118340.0,1.97973919]
[1753613424771,0.12472682,118350.0,118340.0,1.98818891]
[1753613426262,0.12472682,118350.0,118340.0,1.97973919]
[1753613426473,0.12472682,118350.0,118340.0,1.98818891]
[1753613427106,0.11825781,118350.0,118340.0,1.94593958]
[1753613427324,0.11825781,118350.0,118340.0,0.45428202]
[1753613427325,0.31966894,118350.0,118340.0,0.45428202]
[1753613427584,0.33711796,118350.0,118340.0,0.11428202]
[1753613428924,0.33711796,118350.0,118340.0,0.26837642]
[1753613429146,0.33711796,118350.0,118340.0,0.11397642]
[1753613429366,0.33711796,118350.0,118340.0,0.26825642]
[1753613431462,0.33711796,118350.0,118340.0,0.2434517]
[1753613431696,0.33539796,118350.0,118340.0,0.2434517]
[1753613433881,0.33539796,118350.0,118340.0,0.2678017]
[1753613434356,0.33539796,118350.0,118340.0,0.43680626]
[1753613434593,0.31979796,118350.0,118340.0,0.2678017]
[1753613435290,0.31979796,118350.0,118340.0,0.29315648]
[1753613440565,0.30469796,118350.0,118340.0,0.29609648]
[1753613441600,0.11682902,118350.0,118340.0,0.49801104]
[1753613441806,0.13372711,118350.0,118340.0,0.50454119]
[1753613442012,0.09938,118350.0,118340.0,0.86144085]
[1753613443049,0.09938,118350.0,118340.0,5.86144085]
[1753613444512,0.09938,118350.0,118340.0,5.35963185]
[1753613444920,0.09938,118350.0,118340.0,5.34927285]
[1753613445118,0.09938,118350.0,118340.0,5.42927885]
[1753613445747,0.09938,118350.0,118340.0,5.41161085]
[1753613446071,0.09938,118350.0,118340.0,0.86144085]
[1753613446256,0.09938,118350.0,118340.0,5.74561585]
[1753613447337,0.09938,118350.0,118340.0,0.86144085]
[1753613447495,0.09938,118350.0,118340.0,5.86144085]
[1753613448484,0.09938,118350.0,118340.0,5.66107185]
[1753613449389,0.09938,118350.0,118340.0,5.85944085]
[1753613449614,0.09938,118350.0,118340.0,6.06232085]
[1753613449830,0.09938,118350.0,118340.0,6.05932085]
[1753613451125,0.09938,118350.0,118340.0,6.10932085]
[1753613452680,0.09092953,118350.0,118340.0,6.10932085]
[1753613453183,0.08247906,118350.0,118340.0,6.10932085]
[1753613453372,0.08247906,118350.0,118340.0,6.13468885]
[1753613453600,0.07402859,118350.0,118340.0,6.13468885]
[1753613454031,0.06557831,118350.0,118340.0,6.13468885]
[1753613454257,0.05712803,118350.0,118340.0,3.28523385]
[1753613454719,0.04867775,118350.0,118340.0,3.28503385]
[1753613455157,0.04022747,118350.0,118340.0,3.13287385]
[1753613455413,0.04022747,118350.0,118340.0,6.13444885]
[1753613455588,0.03177719,118350.0,118340.0,6.13444885]
[1753613456223,0.03177719,118350.0,118340.0,1.13444885]
[1753613456429,0.03177719,118350.0,118340.0,6.13444885]
[1753613457124,0.03177719,118350.0,118340.0,5.98046685]
[1753613457358,0.03177719,118350.0,118340.0,6.13444885]
[1753613458030,0.03177719,118350.0,118340.0,1.13444885]
[1753613458259,0.03177719,118350.0,118340.0,6.13444885]
[1753613458720,0.03177719,118350.0,118340.0,2.91685285]
[1753613459419,0.03177719,118350.0,118340.0,4.86231185]
[1753613460308,0.03177719,118350.0,118340.0,6.13444885]
[1753613461301,0.03177719,118350.0,118340.0,5.94225385]
[1753613461487,0.03177719,118350.0,118340.0,6.13444885]
[1753613470627,0.03177719,118350.0,118340.0,6.18514885]
[1753613471961,0.02021122,118350.0,118340.0,6.18514885]
[1753613472177,0.01176093,118350.0,118340.0,6.18514885]
[1753613472595,0.00331064,118350.0,118340.0,6.18514885]
[1753613473034,0.0004,118360.0,118350.0,5.66733795]
[1753613473261,0.0004,118360.0,118350.0,5.90484525]
[1753613473468,0.0004,118360.0,118350.0,5.93125525]
[1753613474318,0.0004,118360.0,118350.0,5.94465525]
[1753613474572,0.0004485,118360.0,118350.0,5.94465525]
[1753613475011,0.0004485,118360.0,118350.0,5.94565525]
[1753613479212,0.0004485,118360.0,118350.0,0.94565525]
[1753613479431,0.0004485,118360.0,118350.0,5.94565525]
[1753613480378,0.0024285,118360.0,118350.0,4.07967425]
[1753613480619,0.0024285,118360.0,118350.0,3.36336225]
[1753613481066,0.0024285,118360.0,118350.0,3.39476225]
[1753613481290,0.0024285,118360.0,118350.0,3.39765225]
[1753613481721,0.0024285,118360.0,118350.0,4.71899425]
[1753613482557,0.0024285,118360.0,118350.0,4.64208825]
[1753613482774,0.0024285,118360.0,118350.0,4.02841625]
[1753613482985,0.0004485,118360.0,118350.0,4.02841625]